[Event "*** Titled Tuesday 3|2 Blitz (Early)"]
[Site "Chess.com"]
[Date "2016.12.06"]
[Round "3"]
[White "Firebullet"]
[Black "Holden-Caulfield"]
[Result "1/2-1/2"]
[WhiteElo "2326"]
[BlackElo "2473"]
[TimeControl "180+2"]
[EndTime "11:34:49 PST"]
[Termination "Game drawn by agreement"]

1. d4 {[%clk 0:03:02]} 1... d6 {[%clk 0:03:01.9]} 2. c4 {[%clk 0:03:03.2]} 2...
Nf6 {[%clk 0:03:03]} 3. Nc3 {[%clk 0:03:01.8]} 3... Nbd7 {[%clk 0:03:04.1]} 4.
e4 {[%clk 0:03:02.4]} 4... e5 {[%clk 0:03:04.7]} 5. d5 {[%clk 0:03:02.8]} 5...
Be7 {[%clk 0:03:05.7]} 6. g3 {[%clk 0:02:56.9]} 6... O-O {[%clk 0:03:05.2]} 7.
Bg2 {[%clk 0:02:56.1]} 7... a5 {[%clk 0:03:06.3]} 8. Nf3 {[%clk 0:02:55.7]} 8...
c6 {[%clk 0:03:07.5]} 9. O-O {[%clk 0:02:56]} 9... Nc5 {[%clk 0:03:08.4]} 10.
Ne1 {[%clk 0:02:52.5]} 10... Qc7 {[%clk 0:03:09.5]} 11. Nd3 {[%clk 0:02:48.7]}
11... Nfd7 {[%clk 0:03:08.4]} 12. Be3 {[%clk 0:02:42.5]} 12... Nxd3 {[%clk
0:03:05.2]} 13. Qxd3 {[%clk 0:02:42.9]} 13... Nc5 {[%clk 0:03:06.4]} 14. Bxc5
{[%clk 0:02:36.1]} 14... dxc5 {[%clk 0:03:06.4]} 15. Rad1 {[%clk 0:02:35.4]}
15... Rd8 {[%clk 0:03:06.7]} 16. f4 {[%clk 0:02:28.1]} 16... Bg4 {[%clk
0:03:05]} 17. Rd2 {[%clk 0:02:28.7]} 17... exf4 {[%clk 0:02:58.5]} 18. gxf4
{[%clk 0:02:27.7]} 18... Bf8 {[%clk 0:02:36.3]} 19. e5 {[%clk 0:02:26.5]} 19...
cxd5 {[%clk 0:02:37.4]} 20. cxd5 {[%clk 0:02:26.1]} 20... c4 {[%clk 0:02:38.5]}
21. Qg3 {[%clk 0:02:23.4]} 21... Bf5 {[%clk 0:02:37.5]} 22. d6 {[%clk
0:02:21.7]} 22... Qc5+ {[%clk 0:02:37.2]} 23. Kh1 {[%clk 0:02:22.9]} 23... Rab8
{[%clk 0:02:36.2]} 24. Ne4 {[%clk 0:02:05]} 24... Qb4 {[%clk 0:02:36.9]} 25.
Rfd1 {[%clk 0:01:56.9]} 25... Kh8 {[%clk 0:02:24]} 26. Nc3 {[%clk 0:01:54]}
26... Bd3 {[%clk 0:02:13.8]} 27. a4 {[%clk 0:01:49.5]} 27... f6 {[%clk
0:02:09.7]} 28. Bd5 {[%clk 0:01:41]} 28... Qc5 {[%clk 0:01:58.7]} 29. Qh3 {[%clk
0:01:22.6]} 29... fxe5 {[%clk 0:01:52.5]} 30. fxe5 {[%clk 0:01:00.6]} 30... Re8
{[%clk 0:01:53.4]} 31. Rxd3 {[%clk 0:00:58.5]} 31... cxd3 {[%clk 0:01:52.5]} 32.
Be4 {[%clk 0:00:59.5]} 32... g6 {[%clk 0:01:46.9]} 33. Bxg6 {[%clk 0:00:59.9]}
33... h6 {[%clk 0:01:48.4]} 34. Bxe8 {[%clk 0:00:59.2]} 34... Rxe8 {[%clk
0:01:49.5]} 35. d7 {[%clk 0:00:55.9]} 35... Qc6+ {[%clk 0:01:45.4]} 36. Qg2
{[%clk 0:00:42.4]} 36... Qxd7 {[%clk 0:01:45.4]} 37. Qe4 {[%clk 0:00:36.5]}
37... Qe6 {[%clk 0:01:24.9]} 38. Rxd3 {[%clk 0:00:36.1]} 38... Qxe5 {[%clk
0:01:25.2]} 39. Qxe5+ {[%clk 0:00:35]} 39... Rxe5 {[%clk 0:01:26.5]} 40. Rd7
{[%clk 0:00:34.7]} 40... Re7 {[%clk 0:01:27.5]} 41. Rd5 {[%clk 0:00:31.3]} 41...
b6 {[%clk 0:01:21]} 42. Kg2 {[%clk 0:00:30.8]} 42... Re6 {[%clk 0:01:18.6]} 43.
Kf3 {[%clk 0:00:30.9]} 43... Kg7 {[%clk 0:01:19.5]} 44. Ne4 {[%clk 0:00:30.5]}
44... Bb4 {[%clk 0:01:17.2]} 45. h4 {[%clk 0:00:28.3]} 45... Be7 {[%clk
0:01:10.9]} 46. h5 {[%clk 0:00:28.7]} 46... Kf7 {[%clk 0:01:12.1]} 47. Kf4
{[%clk 0:00:28.9]} 47... Rc6 {[%clk 0:01:11.5]} 48. Kf5 {[%clk 0:00:28.4]} 48...
Rc2 {[%clk 0:01:11.7]} 49. Rb5 {[%clk 0:00:28.7]} 49... Rc6 {[%clk 0:01:11.5]}
50. Rd5 {[%clk 0:00:29]} 50... Rc2 {[%clk 0:01:12.3]} 51. Rb5 {[%clk 0:00:30]}
51... Rc6 {[%clk 0:01:13.3]} 52. Rd5 {[%clk 0:00:30.8]} 52... Rc1 {[%clk
0:01:11.4]} 53. Nd6+ {[%clk 0:00:25.8]} 53... Bxd6 {[%clk 0:01:07.6]} 54. Rxd6
{[%clk 0:00:27.7]} 54... Rc5+ {[%clk 0:01:09.1]} 55. Kg4 {[%clk 0:00:27.3]}
55... Rc4+ {[%clk 0:01:10.5]} 56. Kf5 {[%clk 0:00:26.4]} 56... Rc5+ {[%clk
0:01:11.5]} 57. Kg4 {[%clk 0:00:27.7]} 57... Rc4+ {[%clk 0:01:12.8]} 58. Kf5
{[%clk 0:00:28.7]} 1/2-1/2

[Event "*** Titled Tuesday 3|2 Blitz (Early)"]
[Site "Chess.com"]
[Date "2016.12.06"]
[Round "3"]
[White "Dlugy"]
[Black "LPSupi"]
[Result "1-0"]
[WhiteElo "2619"]
[BlackElo "2594"]
[TimeControl "180+2"]
[EndTime "11:34:52 PST"]
[Termination "Dlugy won on time"]

1. d4 {[%clk 0:03:02]} 1... Nf6 {[%clk 0:03:00.9]} 2. Bf4 {[%clk 0:03:03.7]}
2... e6 {[%clk 0:03:01.5]} 3. e3 {[%clk 0:03:04.5]} 3... b6 {[%clk 0:03:02.8]}
4. Nf3 {[%clk 0:03:05.2]} 4... Bb7 {[%clk 0:03:04.3]} 5. h3 {[%clk 0:03:05.4]}
5... Bd6 {[%clk 0:03:05.2]} 6. Bxd6 {[%clk 0:03:04.5]} 6... cxd6 {[%clk
0:03:06.4]} 7. c4 {[%clk 0:03:01.1]} 7... d5 {[%clk 0:03:04.1]} 8. cxd5 {[%clk
0:03:02]} 8... Bxd5 {[%clk 0:03:01.9]} 9. Nc3 {[%clk 0:03:03.1]} 9... Bb7 {[%clk
0:03:02.2]} 10. Bd3 {[%clk 0:03:04]} 10... O-O {[%clk 0:03:00.4]} 11. e4 {[%clk
0:03:05.1]} 11... d5 {[%clk 0:03:01.4]} 12. e5 {[%clk 0:03:06.5]} 12... Ne4
{[%clk 0:03:02.7]} 13. Qc2 {[%clk 0:03:07.3]} 13... Qc8 {[%clk 0:02:44.3]} 14.
O-O {[%clk 0:02:37.7]} 14... h6 {[%clk 0:01:12.9]} 15. Nxe4 {[%clk 0:02:32]}
15... Qxc2 {[%clk 0:01:12.5]} 16. Bxc2 {[%clk 0:02:32.9]} 16... dxe4 {[%clk
0:01:13.8]} 17. Nd2 {[%clk 0:02:34]} 17... Rd8 {[%clk 0:01:08.7]} 18. Nxe4
{[%clk 0:02:32.7]} 18... Rxd4 {[%clk 0:01:06.3]} 19. Nd6 {[%clk 0:02:33.7]}
19... Bd5 {[%clk 0:00:46]} 20. Rfd1 {[%clk 0:02:15.1]} 20... Nc6 {[%clk
0:00:39.8]} 21. Rxd4 {[%clk 0:02:11.4]} 21... Nxd4 {[%clk 0:00:40.9]} 22. Bd3
{[%clk 0:02:08.4]} 22... g5 {[%clk 0:00:32.4]} 23. Ba6 {[%clk 0:01:47.7]} 23...
Rd8 {[%clk 0:00:23.6]} 24. a3 {[%clk 0:01:11]} 24... Nc6 {[%clk 0:00:23.6]} 25.
Rc1 {[%clk 0:01:12.6]} 25... Nxe5 {[%clk 0:00:23]} 26. Nc8 {[%clk 0:01:14.2]}
26... Kg7 {[%clk 0:00:18.3]} 27. Nxa7 {[%clk 0:01:14.4]} 27... Ba8 {[%clk
0:00:11.6]} 28. Rc2 {[%clk 0:01:03.9]} 28... Rd1+ {[%clk 0:00:12.2]} 29. Kh2
{[%clk 0:01:05.1]} 29... h5 {[%clk 0:00:11.8]} 30. Be2 {[%clk 0:01:06]} 30...
Rd7 {[%clk 0:00:08.9]} 31. Nc8 {[%clk 0:01:07.2]} 31... h4 {[%clk 0:00:09.8]}
32. Nxb6 {[%clk 0:01:07.3]} 32... Rd8 {[%clk 0:00:11]} 33. Nxa8 {[%clk
0:01:08.1]} 33... Rxa8 {[%clk 0:00:12.7]} 34. Bb5 {[%clk 0:01:04.1]} 34... Rd8
{[%clk 0:00:12.7]} 35. Be2 {[%clk 0:00:56.3]} 35... f5 {[%clk 0:00:12.9]} 36. b4
{[%clk 0:00:56.1]} 36... Kf6 {[%clk 0:00:12]} 37. b5 {[%clk 0:00:57.1]} 37... g4
{[%clk 0:00:12.5]} 38. b6 {[%clk 0:00:56]} 38... Rb8 {[%clk 0:00:12.8]} 39. Rb2
{[%clk 0:00:51.5]} 39... gxh3 {[%clk 0:00:13.8]} 40. gxh3 {[%clk 0:00:41.6]}
40... Nd7 {[%clk 0:00:14.9]} 41. b7 {[%clk 0:00:43.1]} 41... e5 {[%clk
0:00:08.9]} 42. Bc4 {[%clk 0:00:42.6]} 42... Ke7 {[%clk 0:00:07]} 43. a4 {[%clk
0:00:26]} 43... Nc5 {[%clk 0:00:07.1]} 44. a5 {[%clk 0:00:27.5]} 1-0

[Event "*** Titled Tuesday 3|2 Blitz (Early)"]
[Site "Chess.com"]
[Date "2016.12.06"]
[Round "3"]
[White "Jungle_Jaguar"]
[Black "Zhani-Z"]
[Result "1-0"]
[WhiteElo "2412"]
[BlackElo "2274"]
[TimeControl "180+2"]
[EndTime "11:35:35 PST"]
[Termination "Jungle_Jaguar won by resignation"]

1. c4 {[%clk 0:03:02]} 1... Nf6 {[%clk 0:02:53.4]} 2. Nc3 {[%clk 0:03:01.6]}
2... c5 {[%clk 0:02:50.8]} 3. g3 {[%clk 0:03:02]} 3... e6 {[%clk 0:02:42.2]} 4.
Bg2 {[%clk 0:03:01.7]} 4... d5 {[%clk 0:02:43.1]} 5. cxd5 {[%clk 0:03:00.6]}
5... exd5 {[%clk 0:02:43.8]} 6. d3 {[%clk 0:02:52.5]} 6... d4 {[%clk 0:02:41.6]}
7. Ne4 {[%clk 0:02:51]} 7... Nxe4 {[%clk 0:02:42.3]} 8. Bxe4 {[%clk 0:02:51.2]}
8... Nd7 {[%clk 0:02:38.3]} 9. e3 {[%clk 0:02:43.9]} 9... Nf6 {[%clk 0:02:37.3]}
10. Bg2 {[%clk 0:02:42.5]} 10... dxe3 {[%clk 0:02:34.8]} 11. Bxe3 {[%clk
0:02:42.7]} 11... Be7 {[%clk 0:02:33.4]} 12. Ne2 {[%clk 0:02:43.1]} 12... O-O
{[%clk 0:02:31.3]} 13. O-O {[%clk 0:02:43.7]} 13... Nd5 {[%clk 0:02:16.6]} 14.
Bxd5 {[%clk 0:02:27.4]} 14... Qxd5 {[%clk 0:02:16.1]} 15. Nf4 {[%clk 0:02:28.6]}
15... Qf5 {[%clk 0:01:43.5]} 16. Qb3 {[%clk 0:01:57.7]} 16... b6 {[%clk
0:01:24.2]} 17. Qd5 {[%clk 0:01:52.6]} 17... Qxd5 {[%clk 0:01:17.4]} 18. Nxd5
{[%clk 0:01:53.2]} 18... Bd8 {[%clk 0:01:05.7]} 19. d4 {[%clk 0:01:40]} 19...
Bb7 {[%clk 0:01:01.8]} 20. Nc3 {[%clk 0:01:36.8]} 20... c4 {[%clk 0:00:35.2]}
21. Bf4 {[%clk 0:01:20.3]} 21... Bf6 {[%clk 0:00:30.3]} 22. Be5 {[%clk
0:01:14.2]} 22... Bxe5 {[%clk 0:00:31]} 23. dxe5 {[%clk 0:01:14.7]} 23... Rad8
{[%clk 0:00:29.3]} 24. f4 {[%clk 0:00:54.3]} 24... a6 {[%clk 0:00:21.5]} 25.
Rad1 {[%clk 0:00:53.7]} 25... b5 {[%clk 0:00:21.9]} 26. a3 {[%clk 0:00:50]}
26... Rfe8 {[%clk 0:00:17.5]} 27. Kf2 {[%clk 0:00:48.7]} 27... f6 {[%clk
0:00:17.7]} 28. exf6 {[%clk 0:00:35.4]} 28... gxf6 {[%clk 0:00:18]} 29. Rxd8
{[%clk 0:00:36.3]} 29... Rxd8 {[%clk 0:00:18.6]} 30. Rd1 {[%clk 0:00:38.2]}
30... Rxd1 {[%clk 0:00:18.8]} 31. Nxd1 {[%clk 0:00:40.1]} 31... Kf7 {[%clk
0:00:16.9]} 32. Ke3 {[%clk 0:00:40.7]} 32... Ke6 {[%clk 0:00:17.8]} 33. g4
{[%clk 0:00:37.5]} 33... Kd5 {[%clk 0:00:16.9]} 34. Nc3+ {[%clk 0:00:36.9]}
34... Kc5 {[%clk 0:00:17.4]} 35. h4 {[%clk 0:00:35.8]} 35... a5 {[%clk
0:00:15.7]} 36. g5 {[%clk 0:00:29.9]} 36... f5 {[%clk 0:00:15.2]} 37. h5 {[%clk
0:00:28.7]} 37... Kd6 {[%clk 0:00:14.5]} 38. Nxb5+ {[%clk 0:00:28.4]} 38... Ke7
{[%clk 0:00:15]} 39. Kd4 {[%clk 0:00:29.2]} 39... Bf3 {[%clk 0:00:13.2]} 40. h6
{[%clk 0:00:20.9]} 40... Be2 {[%clk 0:00:14.7]} 41. Nc3 {[%clk 0:00:21.8]} 41...
Bf1 {[%clk 0:00:15.1]} 42. Nd5+ {[%clk 0:00:22.9]} 42... Kf7 {[%clk 0:00:16.2]}
43. Ne3 {[%clk 0:00:24.4]} 43... Be2 {[%clk 0:00:16.1]} 44. Nxf5 {[%clk
0:00:23.6]} 44... Kg6 {[%clk 0:00:17.3]} 45. Nd6 {[%clk 0:00:23.7]} 45... Kh5
{[%clk 0:00:17.4]} 46. Nxc4 {[%clk 0:00:23.1]} 46... Bd1 {[%clk 0:00:18.4]} 47.
Ne3 {[%clk 0:00:23.2]} 47... Bf3 {[%clk 0:00:17.3]} 48. b4 {[%clk 0:00:24]}
48... axb4 {[%clk 0:00:18.3]} 49. axb4 {[%clk 0:00:25.9]} 49... Bc6 {[%clk
0:00:19.4]} 50. Kc5 {[%clk 0:00:26.6]} 50... Be8 {[%clk 0:00:20.4]} 51. b5
{[%clk 0:00:27.1]} 51... Kh4 {[%clk 0:00:22]} 52. b6 {[%clk 0:00:27.1]} 52...
Kg3 {[%clk 0:00:23.5]} 53. b7 {[%clk 0:00:27.2]} 1-0

[Event "*** Titled Tuesday 3|2 Blitz (Early)"]
[Site "Chess.com"]
[Date "2016.12.06"]
[Round "3"]
[White "biostatistician"]
[Black "Mornar1951"]
[Result "1-0"]
[WhiteElo "2475"]
[BlackElo "2590"]
[TimeControl "180+2"]
[EndTime "11:35:36 PST"]
[Termination "biostatistician won by resignation"]

1. d4 {[%clk 0:03:02]} 1... d5 {[%clk 0:03:00.4]} 2. Nf3 {[%clk 0:03:03.9]} 2...
Nf6 {[%clk 0:03:00.7]} 3. c4 {[%clk 0:03:05.7]} 3... e6 {[%clk 0:03:01.4]} 4.
Bg5 {[%clk 0:03:06.2]} 4... Be7 {[%clk 0:03:01.7]} 5. e3 {[%clk 0:03:07.2]} 5...
Nbd7 {[%clk 0:02:58.6]} 6. Nc3 {[%clk 0:03:08.2]} 6... h6 {[%clk 0:02:59.4]} 7.
Bh4 {[%clk 0:03:09.2]} 7... O-O {[%clk 0:02:59.8]} 8. Rc1 {[%clk 0:03:10.1]}
8... c5 {[%clk 0:03:00.9]} 9. cxd5 {[%clk 0:03:06.4]} 9... Nxd5 {[%clk
0:03:02.8]} 10. Bxe7 {[%clk 0:03:06.6]} 10... Nxe7 {[%clk 0:03:04.7]} 11. Bb5
{[%clk 0:03:04.4]} 11... cxd4 {[%clk 0:02:58]} 12. Nxd4 {[%clk 0:03:03.3]} 12...
Nf6 {[%clk 0:02:45.7]} 13. O-O {[%clk 0:03:00.7]} 13... a6 {[%clk 0:02:43.4]}
14. Be2 {[%clk 0:03:01.5]} 14... Qb6 {[%clk 0:02:39]} 15. Qb3 {[%clk 0:02:56.4]}
15... Qxb3 {[%clk 0:02:39.7]} 16. Nxb3 {[%clk 0:02:57.5]} 16... Bd7 {[%clk
0:02:40.6]} 17. Bf3 {[%clk 0:02:47.7]} 17... Bc6 {[%clk 0:02:39.3]} 18. Rfd1
{[%clk 0:02:39.6]} 18... Bxf3 {[%clk 0:02:35.8]} 19. gxf3 {[%clk 0:02:41.5]}
19... Rfc8 {[%clk 0:02:33.1]} 20. Na4 {[%clk 0:02:38.2]} 20... Rxc1 {[%clk
0:02:30.9]} 21. Rxc1 {[%clk 0:02:40.1]} 21... Rc8 {[%clk 0:02:31.6]} 22. Rxc8+
{[%clk 0:02:30.8]} 22... Nxc8 {[%clk 0:02:33.5]} 23. Nbc5 {[%clk 0:02:28.1]}
23... Nd6 {[%clk 0:02:27.9]} 24. e4 {[%clk 0:02:16]} 24... e5 {[%clk 0:02:26.7]}
25. Nb6 {[%clk 0:02:16.5]} 25... Nfe8 {[%clk 0:02:05.6]} 26. b4 {[%clk
0:02:12.5]} 26... f6 {[%clk 0:02:02]} 27. a4 {[%clk 0:02:13.6]} 27... Kf7 {[%clk
0:02:02.8]} 28. Kg2 {[%clk 0:02:14.7]} 28... Ke7 {[%clk 0:02:03.7]} 29. Kg3
{[%clk 0:02:15.8]} 29... g6 {[%clk 0:02:01.8]} 30. f4 {[%clk 0:02:14.7]} 30...
exf4+ {[%clk 0:02:00.7]} 31. Kxf4 {[%clk 0:02:16.6]} 31... Nc7 {[%clk
0:01:52.6]} 32. Ke3 {[%clk 0:01:56.2]} 32... Ne6 {[%clk 0:01:46.9]} 33. Nd5+
{[%clk 0:01:48.5]} 33... Kf7 {[%clk 0:01:48.1]} 34. Nd7 {[%clk 0:01:32.3]} 34...
f5 {[%clk 0:01:25.6]} 35. Ne5+ {[%clk 0:01:29.6]} 35... Kg7 {[%clk 0:01:23.3]}
36. exf5 {[%clk 0:00:51.4]} 36... Nxf5+ {[%clk 0:01:25.2]} 37. Kd3 {[%clk
0:00:47.7]} 37... Nd6 {[%clk 0:01:24.1]} 38. Nc4 {[%clk 0:00:41.9]} 38... Nxc4
{[%clk 0:01:13.3]} 39. Kxc4 {[%clk 0:00:43.8]} 39... g5 {[%clk 0:01:13.8]} 40.
b5 {[%clk 0:00:42.5]} 40... Kg6 {[%clk 0:01:09.3]} 41. bxa6 {[%clk 0:00:42.2]}
41... bxa6 {[%clk 0:01:11.2]} 42. Nb4 {[%clk 0:00:43.2]} 42... Nc7 {[%clk
0:01:04.8]} 43. Kc5 {[%clk 0:00:43.1]} 43... Kf5 {[%clk 0:01:05.9]} 44. Kd6
{[%clk 0:00:39.7]} 44... Ne8+ {[%clk 0:01:02.3]} 45. Ke7 {[%clk 0:00:38.2]}
45... Nf6 {[%clk 0:01:03.5]} 46. Nxa6 {[%clk 0:00:38.3]} 46... Nd5+ {[%clk
0:01:04]} 47. Kf7 {[%clk 0:00:39.4]} 47... Nb6 {[%clk 0:01:01.5]} 48. Nc5 {[%clk
0:00:39.6]} 48... Nxa4 {[%clk 0:00:41.6]} 49. Nxa4 {[%clk 0:00:41.5]} 49... g4
{[%clk 0:00:43.2]} 50. Nc3 {[%clk 0:00:32.2]} 50... h5 {[%clk 0:00:41.9]} 51.
Ne2 {[%clk 0:00:30.5]} 51... h4 {[%clk 0:00:43]} 52. Ng1 {[%clk 0:00:19.9]}
52... Kg5 {[%clk 0:00:20.9]} 53. Ke6 {[%clk 0:00:20.5]} 53... Kf4 {[%clk
0:00:22.2]} 54. Kf6 {[%clk 0:00:21.3]} 54... g3 {[%clk 0:00:16.9]} 55. fxg3+
{[%clk 0:00:21.7]} 55... hxg3 {[%clk 0:00:15.4]} 56. Ne2+ {[%clk 0:00:22.7]}
56... Kf3 {[%clk 0:00:17]} 57. hxg3 {[%clk 0:00:24.2]} 57... Kg4 {[%clk
0:00:17.1]} 58. Kg6 {[%clk 0:00:24.8]} 1-0

[Event "*** Titled Tuesday 3|2 Blitz (Early)"]
[Site "Chess.com"]
[Date "2016.12.06"]
[Round "3"]
[White "FearlessKing64"]
[Black "Morpheus4"]
[Result "1-0"]
[WhiteElo "1982"]
[BlackElo "1946"]
[TimeControl "180+2"]
[EndTime "11:35:51 PST"]
[Termination "FearlessKing64 won on time"]

1. e4 {[%clk 0:03:02]} 1... e5 {[%clk 0:02:55.9]} 2. Nf3 {[%clk 0:03:02.3]} 2...
Nc6 {[%clk 0:02:56.5]} 3. Bc4 {[%clk 0:03:03.8]} 3... Be7 {[%clk 0:02:53.9]} 4.
d4 {[%clk 0:03:04.1]} 4... exd4 {[%clk 0:02:39.8]} 5. c3 {[%clk 0:03:04.3]} 5...
d3 {[%clk 0:02:37.9]} 6. Qb3 {[%clk 0:02:44.9]} 6... Na5 {[%clk 0:02:28.5]} 7.
Bxf7+ {[%clk 0:02:45]} 7... Kf8 {[%clk 0:02:28.1]} 8. Qa4 {[%clk 0:02:40.4]}
8... Kxf7 {[%clk 0:02:15]} 9. Qxa5 {[%clk 0:02:40.3]} 9... c5 {[%clk 0:02:01.8]}
10. Qb5 {[%clk 0:02:24.6]} 10... d5 {[%clk 0:01:36.5]} 11. Qxd3 {[%clk
0:02:17.8]} 11... Nf6 {[%clk 0:01:21.3]} 12. exd5 {[%clk 0:01:58.4]} 12... Qxd5
{[%clk 0:01:16.5]} 13. Qxd5+ {[%clk 0:01:57]} 13... Nxd5 {[%clk 0:01:14.5]} 14.
O-O {[%clk 0:01:56.7]} 14... Bf6 {[%clk 0:01:07.3]} 15. Nbd2 {[%clk 0:01:54.8]}
15... Bf5 {[%clk 0:01:03.8]} 16. Nc4 {[%clk 0:01:53]} 16... Rad8 {[%clk
0:00:53.8]} 17. Re1 {[%clk 0:01:40.4]} 17... Rhe8 {[%clk 0:00:40.2]} 18. Bg5
{[%clk 0:01:36.6]} 18... Be4 {[%clk 0:00:34.7]} 19. Bxf6 {[%clk 0:01:35.3]}
19... gxf6 {[%clk 0:00:32.3]} 20. Nce5+ {[%clk 0:01:18.3]} 20... fxe5 {[%clk
0:00:26]} 21. Rxe4 {[%clk 0:01:19.7]} 21... Nf6 {[%clk 0:00:10.9]} 22. Nxe5+
{[%clk 0:00:54.8]} 22... Kg7 {[%clk 0:00:10.9]} 23. Ree1 {[%clk 0:00:52.1]}
23... Re6 {[%clk 0:00:10.5]} 24. f4 {[%clk 0:00:46.1]} 24... Rd2 {[%clk
0:00:09.8]} 25. Rab1 {[%clk 0:00:42.4]} 25... Nd5 {[%clk 0:00:09.8]} 26. g3
{[%clk 0:00:40.6]} 26... Nb6 {[%clk 0:00:08.6]} 27. Nf3 {[%clk 0:00:32.6]} 27...
Rxe1+ {[%clk 0:00:06]} 28. Nxe1 {[%clk 0:00:32.6]} 28... Na4 {[%clk 0:00:03.7]}
29. Nf3 {[%clk 0:00:26.9]} 29... Rxb2 {[%clk 0:00:03.7]} 30. Rxb2 {[%clk
0:00:28]} 30... Nxb2 {[%clk 0:00:04.3]} 31. Ne5 {[%clk 0:00:28.1]} 31... Na4
{[%clk 0:00:05.4]} 32. c4 {[%clk 0:00:28.4]} 32... b6 {[%clk 0:00:05.6]} 33. Kf2
{[%clk 0:00:28.7]} 33... a6 {[%clk 0:00:05.4]} 34. Ke3 {[%clk 0:00:26.9]} 34...
b5 {[%clk 0:00:06.4]} 35. Kd3 {[%clk 0:00:28.3]} 35... Nb6 {[%clk 0:00:05.5]}
36. a3 {[%clk 0:00:23.6]} 36... Kf6 {[%clk 0:00:05.8]} 37. g4 {[%clk 0:00:24.2]}
37... h6 {[%clk 0:00:06]} 38. h4 {[%clk 0:00:23.5]} 38... Ke6 {[%clk 0:00:06.2]}
39. Kc3 {[%clk 0:00:23.5]} 39... Kf6 {[%clk 0:00:06.6]} 40. cxb5 {[%clk
0:00:17]} 40... axb5 {[%clk 0:00:06]} 41. Nd3 {[%clk 0:00:17.6]} 41... Nd5+
{[%clk 0:00:06]} 42. Kd2 {[%clk 0:00:14.6]} 42... c4 {[%clk 0:00:07]} 43. g5+
{[%clk 0:00:15.4]} 43... hxg5 {[%clk 0:00:03.9]} 44. fxg5+ {[%clk 0:00:17.3]}
44... Kf5 {[%clk 0:00:03.6]} 45. Nb4 {[%clk 0:00:19.2]} 1-0

[Event "*** Titled Tuesday 3|2 Blitz (Early)"]
[Site "Chess.com"]
[Date "2016.12.06"]
[Round "3"]
[White "DanielNaroditsky"]
[Black "VitaliyBernadskiy"]
[Result "1/2-1/2"]
[WhiteElo "2693"]
[BlackElo "2575"]
[TimeControl "180+2"]
[EndTime "11:36:05 PST"]
[Termination "Game drawn - insufficient material"]

1. d4 {[%clk 0:03:02]} 1... g6 {[%clk 0:02:59.7]} 2. Bf4 {[%clk 0:03:03.7]} 2...
d6 {[%clk 0:03:00.4]} 3. e3 {[%clk 0:02:57.8]} 3... Bg7 {[%clk 0:03:00.3]} 4.
Nf3 {[%clk 0:02:59.3]} 4... Nd7 {[%clk 0:02:58.6]} 5. h3 {[%clk 0:02:59.5]} 5...
e5 {[%clk 0:02:58.8]} 6. Bh2 {[%clk 0:03:00.7]} 6... Nh6 {[%clk 0:02:59.5]} 7.
Be2 {[%clk 0:02:55.4]} 7... O-O {[%clk 0:02:59.4]} 8. O-O {[%clk 0:02:56.7]}
8... e4 {[%clk 0:02:59.8]} 9. Nfd2 {[%clk 0:02:57.4]} 9... f5 {[%clk 0:03:01.3]}
10. c4 {[%clk 0:02:53.2]} 10... Nf6 {[%clk 0:02:56.8]} 11. Nc3 {[%clk
0:02:51.9]} 11... g5 {[%clk 0:02:57.6]} 12. b4 {[%clk 0:02:33.8]} 12... g4
{[%clk 0:02:57.5]} 13. hxg4 {[%clk 0:02:22.8]} 13... Nfxg4 {[%clk 0:02:50.3]}
14. Bg3 {[%clk 0:02:13.3]} 14... Qg5 {[%clk 0:02:46.9]} 15. Nd5 {[%clk
0:02:14.5]} 15... c6 {[%clk 0:02:34.4]} 16. Nf4 {[%clk 0:01:56]} 16... Nxe3
{[%clk 0:02:25.2]} 17. fxe3 {[%clk 0:01:47.8]} 17... Qxg3 {[%clk 0:02:25.7]} 18.
Qb3 {[%clk 0:01:49.7]} 18... Ng4 {[%clk 0:02:16.9]} 19. Bxg4 {[%clk 0:01:48.1]}
19... fxg4 {[%clk 0:02:18.3]} 20. Nxe4 {[%clk 0:01:44.1]} 20... Qh4 {[%clk
0:02:15.6]} 21. c5+ {[%clk 0:01:14.3]} 21... d5 {[%clk 0:02:10.5]} 22. Nxd5
{[%clk 0:01:15.7]} 22... Be6 {[%clk 0:01:21.7]} 23. Ndf6+ {[%clk 0:00:54.3]}
23... Rxf6 {[%clk 0:01:20.1]} 24. Nxf6+ {[%clk 0:00:53.2]} 24... Qxf6 {[%clk
0:01:19.9]} 25. Rxf6 {[%clk 0:00:54.5]} 25... Bxb3 {[%clk 0:01:20.7]} 26. Rd6
{[%clk 0:00:51.8]} 26... Bd5 {[%clk 0:01:19.8]} 27. Rf1 {[%clk 0:00:53.1]} 27...
Re8 {[%clk 0:01:10.9]} 28. Rf4 {[%clk 0:00:41.8]} 28... h5 {[%clk 0:01:07.8]}
29. Kf2 {[%clk 0:00:43.3]} 29... Be6 {[%clk 0:01:01.6]} 30. Re4 {[%clk
0:00:31.9]} 30... Rf8+ {[%clk 0:00:40.1]} 31. Kg3 {[%clk 0:00:32.9]} 31... Bxa2
{[%clk 0:00:39.7]} 32. Rd7 {[%clk 0:00:27.5]} 32... Bd5 {[%clk 0:00:33]} 33. Rf4
{[%clk 0:00:25.4]} 33... Re8 {[%clk 0:00:33.5]} 34. Kh4 {[%clk 0:00:21]} 34...
Bxg2 {[%clk 0:00:23.2]} 35. Kxh5 {[%clk 0:00:19.9]} 35... Bf3 {[%clk 0:00:19]}
36. Rff7 {[%clk 0:00:18.6]} 36... Bf8 {[%clk 0:00:19.2]} 37. Rf5 {[%clk
0:00:14.6]} 37... Rxe3 {[%clk 0:00:16.7]} 38. Rd8 {[%clk 0:00:15.8]} 38... g3+
{[%clk 0:00:14.5]} 39. Kg5 {[%clk 0:00:13.1]} 39... Bd5 {[%clk 0:00:06.6]} 40.
Rfxf8+ {[%clk 0:00:05.3]} 40... Kg7 {[%clk 0:00:06.4]} 41. Rf1 {[%clk 0:00:07]}
41... g2 {[%clk 0:00:07.1]} 42. Rd7+ {[%clk 0:00:08.7]} 42... Kg8 {[%clk
0:00:07.7]} 43. Rg1 {[%clk 0:00:08.7]} 43... Rg3+ {[%clk 0:00:07.4]} 44. Kh4
{[%clk 0:00:06.4]} 44... Rg7 {[%clk 0:00:06.6]} 45. Rxg7+ {[%clk 0:00:04.5]}
45... Kxg7 {[%clk 0:00:08.1]} 46. Kg5 {[%clk 0:00:06.4]} 46... Kf7 {[%clk
0:00:09.3]} 47. Kf5 {[%clk 0:00:07.8]} 47... Ke7 {[%clk 0:00:10.8]} 48. Ke5
{[%clk 0:00:09.3]} 48... Kf7 {[%clk 0:00:09.9]} 49. Kd6 {[%clk 0:00:05.5]} 49...
Be4 {[%clk 0:00:04.1]} 50. Kc7 {[%clk 0:00:05.1]} 50... Ke6 {[%clk 0:00:02.2]}
51. Kxb7 {[%clk 0:00:04.9]} 51... Kd5 {[%clk 0:00:03.7]} 52. Kxa7 {[%clk
0:00:03.8]} 52... Kxd4 {[%clk 0:00:04.4]} 53. Kb6 {[%clk 0:00:05.5]} 53... Kc4
{[%clk 0:00:05.3]} 54. Ka5 {[%clk 0:00:03.9]} 54... Bd5 {[%clk 0:00:06.8]} 55.
b5 {[%clk 0:00:04.2]} 55... cxb5 {[%clk 0:00:06.7]} 56. Kb6 {[%clk 0:00:05.9]}
56... b4 {[%clk 0:00:07.1]} 57. c6 {[%clk 0:00:07.5]} 57... Bxc6 {[%clk
0:00:07.5]} 58. Kxc6 {[%clk 0:00:09.4]} 58... b3 {[%clk 0:00:09]} 59. Rxg2
{[%clk 0:00:10.5]} 59... Kc3 {[%clk 0:00:10.5]} 60. Rg3+ {[%clk 0:00:12.2]}
60... Kc2 {[%clk 0:00:11.5]} 61. Rg2+ {[%clk 0:00:13.6]} 61... Kc1 {[%clk
0:00:12.2]} 62. Rg1+ {[%clk 0:00:13.8]} 62... Kc2 {[%clk 0:00:13.3]} 63. Kc5
{[%clk 0:00:15.5]} 63... b2 {[%clk 0:00:14.4]} 64. Kc4 {[%clk 0:00:17.4]} 64...
b1=Q {[%clk 0:00:14.6]} 65. Rxb1 {[%clk 0:00:19]} 65... Kxb1 {[%clk 0:00:15.8]}
1/2-1/2